fUSD/lending_fUSD_20250505
["ID","MTS","AMOUNT","RATE_DAILY","PERIOD"]
[359912340,1746415843590,-918.90916568,0.00019893,2]
[359912341,1746415843600,-918.90916568,0.00019893,2]
[359912342,1746415843609,-918.90916568,0.00019893,2]
[359912343,1746415843618,-918.90916568,0.00019893,2]
[359912344,1746415843627,-918.90916568,0.00019893,2]
[359912345,1746415843639,-918.90916568,0.00019893,2]
[359912346,1746415843647,-918.90916568,0.00019893,2]
[359912347,1746415843657,-918.90916568,0.00019893,2]
[359912348,1746415843666,-918.90916568,0.00019893,2]
[359912349,1746415843675,-918.90916568,0.00019893,2]
[359912350,1746415843685,-918.90916568,0.00019893,2]
[359912351,1746415843694,-918.90916568,0.00019893,2]
[359912352,1746415843835,-918.90916568,0.00019893,2]
[359912353,1746415843845,-918.90916568,0.00019893,2]
[359912354,1746415843854,-918.90916568,0.00019893,2]
[359912355,1746415843863,-918.90916568,0.00019893,2]
[359912356,1746415843872,-918.90916568,0.00019893,2]
[359912357,1746415843881,-918.90916568,0.00019893,2]
[359912358,1746415843890,-918.90916568,0.00019893,2]
[359912359,1746415843900,-918.90916568,0.00019893,2]
[359912360,1746415843909,-918.90916568,0.00019893,2]
[359912361,1746415843918,-918.90916568,0.00019893,2]
[359912362,1746415843928,-918.90916568,0.00019893,2]
[359912363,1746415843937,-918.90916568,0.00019893,2]
[359912364,1746415843945,-918.90916568,0.00019893,2]
[359912365,1746415843954,-918.90916568,0.00019893,2]
[359912366,1746415843963,-918.90916568,0.00019893,2]
[359912367,1746415843973,-128793.8126,0.00019894,2]
[359912368,1746415843982,-151.0,0.00019894,2]
[359912369,1746415843991,-162.164361,0.00019894,2]
[359912370,1746415844000,-151.0,0.00019894,2]
[359912371,1746415844010,-151.0,0.00019894,2]
[359912372,1746415844019,-151.0,0.00019894,2]
[359912373,1746415844029,-151.0,0.00019894,2]
[359912374,1746415844038,-151.0,0.00019894,2]
[359912375,1746415844047,-151.0,0.00019894,2]
[359912376,1746415844056,-151.0,0.00019894,2]
[359912377,1746415844065,-151.0,0.00019894,2]
[359912378,1746415844074,-156.382913,0.00019894,2]
[359912379,1746415844083,-191.78611,0.00019894,2]
[359912380,1746415844092,-191.78611,0.00019894,2]
[359912381,1746415844101,-156.877507,0.00019894,2]
[359912382,1746415844111,-151.0,0.00019894,2]
[359912383,1746415844120,-151.0,0.00019894,2]
[359912384,1746415844129,-151.0,0.00019894,2]
[359912385,1746415844138,-151.0,0.00019894,2]
[359912386,1746415844147,-151.0,0.00019894,2]
[359912387,1746415844156,-151.0,0.00019894,2]
[359912388,1746415844165,-151.0,0.00019894,2]
[359912389,1746415844175,-166.070161,0.00019894,2]
[359912390,1746415844184,-154.922203,0.00019894,2]
[359912391,1746415844193,-151.0,0.00019894,2]
[359912392,1746415844202,-151.0,0.00019894,2]
[359912393,1746415844211,-151.0,0.00019894,2]
[359912394,1746415844220,-151.0,0.00019894,2]
[359912395,1746415844229,-151.592316,0.00019894,2]
[359912396,1746415844239,-151.0,0.00019894,2]
[359912397,1746415844248,-151.0,0.00019894,2]
[359912398,1746415844257,-153.462348,0.00019894,2]
[359912399,1746415844266,-153.823282,0.00019894,2]
[359912400,1746415844275,-151.0,0.00019894,2]
[359912401,1746415844285,-151.0,0.00019894,2]
[359912402,1746415844294,-151.0,0.00019894,2]
[359912403,1746415844303,-152.936632,0.00019894,2]
[359912404,1746415844312,-151.0,0.00019894,2]
[359912405,1746415844321,-151.0,0.00019894,2]
[359912406,1746415844330,-151.0,0.00019894,2]
[359912407,1746415844339,-614.1752,0.00019895,2]
[359912408,1746415844349,-170567.33877707,0.00019896,2]
[359912409,1746415844366,-29917.12361948,0.00019896,2]
[359912410,1746415844377,-8308.6776493,0.00019896,2]
[359912411,1746415844386,-151.0,0.00019896,2]
[359912412,1746415844395,-450.0,0.00019896,2]
[359912413,1746415844404,-450.0,0.00019896,2]
[359912414,1746415844414,-151.0,0.00019896,2]
[359912415,1746415844423,-151.0,0.00019896,2]
[359912416,1746415844432,-450.0,0.00019896,2]
[359912417,1746415844440,-151.0,0.00019896,2]
[359912418,1746415844450,-206.656233,0.00019896,2]
[359912419,1746415844459,-1017.05,0.00019896,2]
[359912420,1746415844468,-581.29180605,0.00019896,2]
[359912421,1746415844477,-538.45,0.00019896,2]
[359912422,1746415844487,-593.68876051,0.00019896,2]
[359912423,1746415844496,-151.0,0.00019896,2]
[359912424,1746415844505,-300.734947,0.00019896,2]
[359912425,1746415844515,-450.0,0.00019896,2]
[359912426,1746415844524,-450.0,0.00019896,2]
[359912427,1746415844533,-450.0,0.00019896,2]
[359912428,1746415844542,-450.0,0.00019896,2]
[359912429,1746415844552,-12978.75,0.00019896,2]
[359912430,1746415844561,-450.0,0.00019896,2]
[359912431,1746415844570,-191.78611,0.00019896,2]
[359912432,1746415844579,-191.78611,0.00019896,2]
[359912433,1746415844588,-450.0,0.00019896,2]
[359912434,1746415844598,-1297.1,0.00019896,2]
[359912435,1746415844607,-167.28908916,0.00019896,2]
[359912436,1746415844616,-450.0,0.00019896,2]
[359912437,1746415844625,-151.0,0.00019896,2]
[359912438,1746415844639,-156.376908,0.00019896,2]
[359912439,1746415844648,-151.0,0.00019896,2]
[359912440,1746415844657,-151.0,0.00019896,2]
[359912441,1746415844666,-151.0,0.00019896,2]
[359912442,1746415844675,-450.0,0.00019896,2]
[359912443,1746415844687,-914.11,0.00019896,2]
[359912444,1746415844696,-914.11,0.00019896,2]
[359912445,1746415844706,-237.68,0.00019896,2]
[359912446,1746415844721,-450.0,0.00019896,2]
[359912447,1746415844732,-450.0,0.00019896,2]
[359912448,1746415844741,-450.0,0.00019896,2]
[359912449,1746415844751,-468.56,0.00019896,2]
[359912450,1746415844760,-507.03,0.00019896,2]
[359912451,1746415844769,-450.0,0.00019896,2]
[359912452,1746415844779,-1989.16,0.00019896,2]
[359912453,1746415844788,-1989.16,0.00019896,2]
[359912454,1746415844797,-450.0,0.00019896,2]
[359912455,1746415844807,-214.35,0.00019896,2]
[359912456,1746415844817,-450.0,0.00019896,2]
[359912457,1746415844826,-450.0,0.00019896,2]
[359912458,1746415844835,-2188.98,0.00019896,2]
[359912459,1746415844844,-450.0,0.00019896,2]
[359912460,1746415844854,-450.0,0.00019896,2]
[359912461,1746415844864,-450.0,0.00019896,2]
[359912462,1746415844873,-774.54,0.00019896,2]
[359912463,1746415844883,-153.78678361,0.00019896,2]
[359912464,1746415844892,-450.0,0.00019896,2]
[359912465,1746415844902,-488.45689752,0.00019896,2]
[359912466,1746415844912,-450.0,0.00019896,2]
[359912467,1746415844921,-500.0,0.00019896,2]
[359912468,1746415844930,-500.0,0.00019896,2]
[359912469,1746415844939,-158.15134534,0.00019896,2]
[359912470,1746415844948,-200.0,0.00019897,2]
[359912471,1746415844958,-450.0,0.00019897,2]
[359912472,1746415844968,-450.0,0.00019897,2]
[359912473,1746415844978,-250.0,0.00019897,2]
[359912474,1746415844987,-450.0,0.00019897,2]
[359912475,1746415844996,-450.0,0.00019897,2]
[359912476,1746415845005,-450.0,0.00019897,2]
[359912477,1746415845015,-450.0,0.00019897,2]
[359912478,1746415845024,-450.0,0.00019897,2]
[359912479,1746415845033,-450.0,0.00019897,2]
[359912480,1746415845043,-151.0,0.00019897,2]
[359912481,1746415845052,-450.0,0.00019897,2]
[359912482,1746415845061,-450.0,0.00019897,2]
[359912483,1746415845070,-450.0,0.00019897,2]
[359912484,1746415845080,-507.76506426,0.00019897,2]
[359912485,1746415845089,-151.0,0.00019897,2]
[359912486,1746415845099,-450.0,0.00019897,2]
[359912487,1746415845108,-151.0,0.00019897,2]
[359912488,1746415845118,-439.60821371,0.00019897,2]
[359912489,1746415845127,-500.0,0.00019897,2]
[359912490,1746415845136,-300.71898,0.00019897,2]
[359912491,1746415845146,-462.30135774,0.00019897,2]
[359912492,1746415845156,-151.0,0.00019897,2]
[359912493,1746415845166,-519.08259498,0.00019897,2]
[359912494,1746415845177,-151.0,0.00019897,2]
[359912495,1746415845187,-450.0,0.00019897,2]
[359912496,1746415845197,-151.0,0.00019897,2]
[359912497,1746415845206,-450.0,0.00019897,2]
[359912498,1746415845216,-542.40852464,0.00019897,2]
[359912499,1746415845225,-200.0,0.00019897,2]
[359912500,1746415845234,-450.0,0.00019897,2]
[359912501,1746415845246,-450.0,0.00019897,2]
[359912502,1746415845256,-156.040673,0.00019897,2]
[359912503,1746415845269,-450.0,0.00019897,2]
[359912504,1746415845280,-450.0,0.00019897,2]
[359912505,1746415845292,-450.0,0.00019897,2]
[359912506,1746415845302,-450.0,0.00019897,2]
[359912508,1746415845312,-474.75096554,0.00019897,2]
[359912511,1746415845323,-470.0,0.00019897,2]
[359912512,1746415845334,-503.87045486,0.00019897,2]
[359912513,1746415845346,-460.0,0.00019897,2]
[359912514,1746415845357,-450.0,0.00019897,2]
[359912515,1746415845369,-450.0,0.00019897,2]
[359912516,1746415845380,-450.0,0.00019897,2]
[359912517,1746415845392,-518.09303996,0.00019897,2]
[359912518,1746415845404,-495.97112608,0.00019897,2]
[359912519,1746415845415,-450.0,0.00019897,2]
[359912520,1746415845426,-450.0,0.00019897,2]
[359912521,1746415845436,-450.0,0.00019897,2]
[359912522,1746415845446,-450.0,0.00019897,2]
[359912523,1746415845457,-450.0,0.00019897,2]
[359912524,1746415845469,-450.0,0.00019897,2]
[359912525,1746415845480,-523.94287964,0.00019897,2]
[359912526,1746415845492,-458.54095639,0.00019897,2]
[359912527,1746415845503,-450.0,0.00019897,2]
[359912528,1746415845515,-470.0,0.00019897,2]
[359912529,1746415845527,-450.0,0.00019897,2]
[359912530,1746415845540,-450.0,0.00019897,2]
[359912531,1746415845553,-456.07764496,0.00019897,2]
[359912532,1746415845565,-470.0,0.00019897,2]
[359912533,1746415845576,-524.98702936,0.00019897,2]
[359912534,1746415845591,-151.0,0.00019897,2]
[359912535,1746415845602,-450.0,0.00019897,2]
[359912536,1746415845616,-428.24804985,0.00019897,2]
[359912537,1746415845628,-470.0,0.00019897,2]
[359912538,1746415845643,-151.0,0.00019897,2]
[359912539,1746415845655,-518.47090261,0.00019897,2]
[359912540,1746415845666,-412.41337402,0.00019897,2]
[359912541,1746415845678,-464.03763706,0.00019897,2]
[359912542,1746415845691,-456.34125717,0.00019897,2]
[359912543,1746415845703,-470.0,0.00019897,2]
[359912544,1746415845717,-550.89699471,0.00019897,2]
[359912545,1746415845729,-450.0,0.00019897,2]
[359912546,1746415845740,-151.0,0.00019897,2]
[359912547,1746415845751,-450.0,0.00019897,2]
[359912548,1746415845762,-151.0,0.00019897,2]
[359912549,1746415845772,-450.0,0.00019897,2]
[359912550,1746415845783,-450.0,0.00019897,2]
[359912551,1746415845793,-470.0,0.00019897,2]
[359912552,1746415845806,-167.99453785,0.00019897,2]
[359912553,1746415845820,-450.0,0.00019897,2]
[359912554,1746415845831,-450.0,0.00019897,2]
[359912555,1746415845841,-450.0,0.00019897,2]
[359912556,1746415845851,-450.0,0.00019897,2]
[359912557,1746415845861,-450.0,0.00019897,2]
[359912558,1746415845871,-257.87872418,0.00019897,2]
[359912559,1746415845883,-504.08818385,0.00019897,2]
[359912560,1746415845894,-450.0,0.00019897,2]
[359912561,1746415845907,-450.0,0.00019897,2]
[359912562,1746415845918,-470.0,0.00019897,2]
[359912563,1746415845928,-151.0,0.00019897,2]
[359912564,1746415845939,-450.0,0.00019897,2]
[359912565,1746415845949,-151.0,0.00019897,2]
[359912566,1746415845959,-405.41672561,0.00019897,2]
[359912567,1746415845971,-470.0,0.00019897,2]
[359912568,1746415845981,-165.270212,0.00019897,2]
[359912569,1746415845991,-450.0,0.00019897,2]
[359912570,1746415846002,-470.0,0.00019897,2]
[359912572,1746415846013,-450.0,0.00019897,2]
[359912574,1746415846023,-319.61271594,0.00019897,2]
[359912601,1746415846268,-130.38728406,0.00019897,2]
[359912603,1746415846279,-151.0,0.00019897,2]
[359912605,1746415846289,-151.0,0.00019897,2]
[359912607,1746415846300,-403.02036585,0.00019897,2]
[359912610,1746415846310,-474.49729467,0.00019897,2]
[359912612,1746415846321,-450.0,0.00019897,2]
[359912614,1746415846331,-461.38929947,0.00019897,2]
[359912616,1746415846342,-459.93570431,0.00019897,2]
[359912618,1746415846353,-450.0,0.00019897,2]
[359912620,1746415846363,-296.80611223,0.00019897,2]
[359912623,1746415846374,-450.0,0.00019897,2]
[359912625,1746415846385,-470.0,0.00019897,2]
[359912627,1746415846396,-450.0,0.00019897,2]
[359912629,1746415846407,-275.60393941,0.00019897,2]
[359912646,1746415846555,-174.39606059,0.00019897,2]
[359912648,1746415846564,-470.0,0.00019897,2]
[359912649,1746415846573,-450.0,0.00019897,2]
[359912651,1746415846584,-470.0,0.00019897,2]
[359912653,1746415846594,-78.41555314,0.00019897,2]
[359912656,1746415846606,-275.0,0.00019897,2]
[359912658,1746415846621,-169.55097916,0.00019897,2]
[359912660,1746415846630,-470.0,0.00019897,2]
[359912662,1746415846643,-464.77769941,0.00019897,2]
[359912664,1746415846652,-450.0,0.00019897,2]
[359912666,1746415846662,-450.0,0.00019897,2]
[359912668,1746415846671,-151.0,0.00019897,2]
[359912692,1746415846682,-161.842089,0.00019897,2]
[359912694,1746415846899,-191.99846451,0.00019897,2]
[359912706,1746415847001,-377.904,0.00019888,2]
[359912708,1746415847012,-402.39050702,0.00019888,2]
[359912710,1746415847023,-1962.28232165,0.00019888,2]
[359912712,1746415847033,-450.0,0.00019893,2]
[359912714,1746415847043,-152.281143,0.00019894,2]
[359912716,1746415847053,-126.63378193,0.00019897,2]
[359912772,1746415847672,-37.92144396,0.00019897,2]
[359912773,1746415847682,-450.0,0.00019897,2]
[359912774,1746415847692,-524.92792771,0.00019897,2]
[359912775,1746415847701,-455.4704802,0.00019897,2]
[359912776,1746415847710,-450.0,0.00019897,2]
[359912777,1746415847721,-483.84421354,0.00019897,2]
[359912778,1746415847731,-450.0,0.00019897,2]
[359912779,1746415847741,-450.0,0.00019897,2]
[359912780,1746415847750,-458.87139797,0.00019897,2]
[359912781,1746415847759,-524.84517483,0.00019897,2]
[359912782,1746415847769,-450.0,0.00019897,2]
[359912783,1746415847779,-470.0,0.00019897,2]
[359912784,1746415847788,-450.0,0.00019897,2]
[359912785,1746415847797,-450.0,0.00019897,2]
[359912786,1746415847806,-470.0,0.00019897,2]
[359912787,1746415847816,-450.0,0.00019897,2]
[359912788,1746415847825,-463.62010244,0.00019897,2]
[359912789,1746415847834,-453.70487618,0.00019897,2]
[359912790,1746415847844,-941.45,0.00019897,2]
[359912791,1746415847853,-484.08393194,0.00019897,2]
[359912792,1746415847862,-499.6749523,0.00019897,2]
[359912793,1746415847872,-480.96266995,0.00019897,2]
[359912794,1746415847881,-450.0,0.00019897,2]
[359912795,1746415847891,-475.8690853,0.00019897,2]
[359912796,1746415847900,-406.28556636,0.00019897,2]
[359912797,1746415847910,-510.91043993,0.00019897,2]
[359912798,1746415847919,-525.34828077,0.00019897,2]
[359912799,1746415847929,-473.92460116,0.00019897,2]
[359912800,1746415847938,-456.9910966,0.00019897,2]
[359912801,1746415847947,-482.14073974,0.00019897,2]
[359912802,1746415847956,-458.54105435,0.00019897,2]
[359912803,1746415847966,-450.0,0.00019897,2]
[359912804,1746415847975,-479.87094506,0.00019897,2]
[359912805,1746415847985,-450.0,0.00019897,2]
[359912806,1746415847994,-405.17029812,0.00019897,2]
[359912807,1746415848004,-483.00261409,0.00019897,2]
[359912808,1746415848013,-377.62429714,0.00019897,2]
[359912809,1746415848023,-450.83292379,0.00019897,2]
[359912810,1746415848033,-472.96390069,0.00019897,2]
[359912811,1746415848042,-255.55339827,0.00019897,2]
[359912812,1746415848052,-455.56558505,0.00019897,2]
[359912813,1746415848061,-479.13607061,0.00019897,2]
[359912814,1746415848071,-639.98049471,0.00019897,2]
[359912815,1746415848081,-472.36013284,0.00019897,2]
[359912816,1746415848090,-509.82155977,0.00019897,2]
[359912817,1746415848099,-472.12419073,0.00019897,2]
[359912818,1746415848109,-450.0,0.00019897,2]
[359912819,1746415848118,-465.34252258,0.00019897,2]
[359912820,1746415848127,-450.0,0.00019897,2]
[359912821,1746415848137,-469.58417694,0.00019897,2]
[359912822,1746415848146,-509.87857998,0.00019897,2]
[359912823,1746415848156,-463.69404304,0.00019897,2]
[359912824,1746415848165,-470.94612008,0.00019897,2]
[359912825,1746415848175,-580.16574022,0.00019897,2]
[359912826,1746415848185,-165.24769332,0.00019897,2]
[359912827,1746415848194,-460.26618022,0.00019897,2]
[359912828,1746415848204,-455.02462903,0.00019897,2]
[359912829,1746415848213,-469.27245692,0.00019897,2]
[359912830,1746415848222,-466.69798467,0.00019897,2]
[359912831,1746415848231,-472.9535696,0.00019897,2]
[359912832,1746415848240,-507.49777357,0.00019897,2]
[359912833,1746415848250,-473.63356996,0.00019897,2]
[359912834,1746415848259,-450.0,0.00019897,2]
[359912835,1746415848269,-483.30326129,0.00019897,2]
[359912836,1746415848278,-450.0,0.00019897,2]
[359912837,1746415848288,-507.22498297,0.00019897,2]
[359912838,1746415848298,-481.02237408,0.00019897,2]
[359912839,1746415848307,-450.0,0.00019897,2]
[359912840,1746415848316,-458.50894384,0.00019897,2]
[359912841,1746415848326,-476.85262624,0.00019897,2]
[359912842,1746415848336,-450.58399861,0.00019897,2]
[359912843,1746415848345,-458.90662916,0.00019897,2]
[359912844,1746415848355,-450.0,0.00019897,2]
[359912845,1746415848364,-478.97879105,0.00019897,2]
[359912846,1746415848373,-459.8576753,0.00019897,2]
[359912847,1746415848382,-526.84821507,0.00019897,2]
[359912848,1746415848392,-451.05344824,0.00019897,2]
[359912849,1746415848402,-450.0,0.00019897,2]
[359912850,1746415848411,-456.099323,0.00019897,2]
[359912851,1746415848421,-455.17750076,0.00019897,2]
[359912852,1746415848430,-463.35467774,0.00019897,2]
[359912853,1746415848439,-459.47171882,0.00019897,2]
[359912854,1746415848448,-200.0,0.00019897,2]
[359912855,1746415848458,-514.76436208,0.00019897,2]
[359912856,1746415848467,-470.66081904,0.00019897,2]
[359912857,1746415848477,-459.31224249,0.00019897,2]
[359912858,1746415848486,-472.34378936,0.00019897,2]
[359912859,1746415848495,-450.0,0.00019897,2]
[359912860,1746415848505,-453.39181718,0.00019897,2]
[359912861,1746415848514,-462.95685112,0.00019897,2]
[359912862,1746415848524,-457.80424973,0.00019897,2]
[359912863,1746415848534,-491.56092565,0.00019897,2]
[359912864,1746415848543,-504.30703448,0.00019897,2]
[359912865,1746415848553,-522.07796466,0.00019897,2]
[359912866,1746415848563,-406.01294985,0.00019897,2]
[359912867,1746415848572,-459.88945369,0.00019897,2]
[359912868,1746415848581,-476.52908061,0.00019897,2]
[359912869,1746415848591,-192.71451403,0.00019897,2]
[359912870,1746415848600,-450.0,0.00019897,2]
[359912871,1746415848610,-479.98537731,0.00019897,2]
[359912872,1746415848619,-459.87938233,0.00019897,2]
[359912873,1746415848629,-457.70105713,0.00019897,2]
[359912874,1746415848643,-592.09975387,0.00019897,2]
[359912875,1746415848652,-476.48084141,0.00019897,2]
[359912876,1746415848662,-480.28054865,0.00019897,2]
[359912877,1746415848672,-455.80879024,0.00019897,2]
[359912878,1746415848682,-462.41933236,0.00019897,2]
[359912879,1746415848691,-450.0,0.00019897,2]
[359912880,1746415848700,-474.59709247,0.00019897,2]
[359912881,1746415848709,-450.0,0.00019897,2]
[359912882,1746415848720,-461.19981582,0.00019897,2]
[359912883,1746415848730,-489.69031832,0.00019897,2]
[359912884,1746415848740,-456.67395158,0.00019897,2]
[359912885,1746415848749,-476.97015173,0.00019897,2]
[359912886,1746415848758,-480.4951072,0.00019897,2]
[359912887,1746415848768,-453.8537746,0.00019897,2]
[359912888,1746415848777,-454.05078139,0.00019897,2]
[359912889,1746415848787,-453.87245298,0.00019897,2]
[359912890,1746415848796,-485.1963239,0.00019897,2]
[359912891,1746415848806,-485.90733902,0.00019897,2]
[359912892,1746415848815,-472.88880859,0.00019897,2]
[359912893,1746415848825,-161.319684,0.00019897,2]
[359912894,1746415848834,-479.06017432,0.00019897,2]
[359912895,1746415848843,-465.37060004,0.00019897,2]
[359912896,1746415848852,-478.51910426,0.00019897,2]
[359912897,1746415848862,-538.13270252,0.00019897,2]
[359912898,1746415848871,-480.57375331,0.00019897,2]
[359912899,1746415848880,-456.1388985,0.00019897,2]
[359912900,1746415848890,-523.90165349,0.00019897,2]
[359912901,1746415848899,-462.28965264,0.00019897,2]
[359912902,1746415848908,-480.48388742,0.00019897,2]
[359912903,1746415848918,-482.12891842,0.00019897,2]
[359912904,1746415848927,-539.55319787,0.00019897,2]
[359912905,1746415848936,-477.83338011,0.00019897,2]
[359912906,1746415848946,-512.20443152,0.00019897,2]
[359912907,1746415848955,-457.61642425,0.00019897,2]
[359912908,1746415848964,-463.65031507,0.00019897,2]
[359912909,1746415848974,-509.99911364,0.00019897,2]
[359912910,1746415848983,-458.71861892,0.00019897,2]
[359912911,1746415848992,-474.20874944,0.00019897,2]
[359912912,1746415849001,-535.03318908,0.00019897,2]
[359912913,1746415849012,-524.56553273,0.00019897,2]
[359912914,1746415849022,-478.13868149,0.00019897,2]
[359912915,1746415849032,-454.23719678,0.00019897,2]
[359912916,1746415849042,-477.86950747,0.00019897,2]
[359912917,1746415849052,-467.84531862,0.00019897,2]
[359912918,1746415849061,-479.82332908,0.00019897,2]
[359912919,1746415849072,-452.28311947,0.00019897,2]
[359912920,1746415849081,-151.0,0.00019897,2]
[359912921,1746415849091,-151.0,0.00019897,2]
[359912922,1746415849100,-450.0,0.00019897,2]
[359912923,1746415849112,-461.65245554,0.00019897,2]
[359912924,1746415849122,-151.0,0.00019897,2]
[359912925,1746415849132,-312.95295594,0.00019897,2]
[359912926,1746415849142,-480.42598849,0.00019897,2]
[359912927,1746415849151,-490.31642883,0.00019897,2]
[359912928,1746415849160,-450.0,0.00019897,2]
[359912929,1746415849170,-469.93466157,0.00019897,2]
[359912930,1746415849179,-482.08728784,0.00019897,2]
[359912931,1746415849189,-450.0,0.00019897,2]
[359912932,1746415849198,-481.02212628,0.00019897,2]
[359912933,1746415849208,-450.0,0.00019897,2]
[359912934,1746415849217,-454.66421066,0.00019897,2]
[359912935,1746415849226,-508.31646053,0.00019897,2]
[359912936,1746415849236,-476.11090347,0.00019897,2]
[359912937,1746415849247,-450.0,0.00019897,2]
[359912938,1746415849256,-484.37385314,0.00019897,2]
[359912939,1746415849265,-470.49986721,0.00019897,2]
[359912940,1746415849275,-470.4043782,0.00019897,2]
[359912941,1746415849284,-450.59938687,0.00019897,2]
[359912942,1746415849294,-478.44657695,0.00019897,2]
[359912943,1746415849303,-453.54688983,0.00019897,2]
[359912944,1746415849312,-511.79476734,0.00019897,2]
[359912945,1746415849321,-469.76475955,0.00019897,2]
[359912946,1746415849331,-477.54786863,0.00019897,2]
[359912947,1746415849340,-469.44543255,0.00019897,2]
[359912948,1746415849349,-451.45881753,0.00019897,2]
[359912949,1746415849358,-151.0,0.00019897,2]
[359912950,1746415849368,-452.78487224,0.00019897,2]
[359912951,1746415849378,-484.53953135,0.00019897,2]
[359912952,1746415849387,-450.0,0.00019897,2]
[359912953,1746415849396,-450.0,0.00019897,2]
[359912954,1746415849406,-453.53,0.00019897,2]
[359912955,1746415849415,-479.30682468,0.00019897,2]
[359912956,1746415849424,-461.89901696,0.00019897,2]
[359912957,1746415849433,-457.96950653,0.00019897,2]
[359912958,1746415849443,-452.70515665,0.00019897,2]
[359912959,1746415849452,-462.31471747,0.00019897,2]
[359912960,1746415849462,-511.98218169,0.00019897,2]
[359912961,1746415849471,-463.07953215,0.00019897,2]
[359912962,1746415849481,-473.15386913,0.00019897,2]
[359912963,1746415849490,-467.66259418,0.00019897,2]
[359912964,1746415849499,-509.38236254,0.00019897,2]
[359912965,1746415849508,-452.38105935,0.00019897,2]
[359912966,1746415849517,-112.93344463,0.00019897,2]
[359912967,1746415849558,-293.95,0.00019897,2]
[359912968,1746415849570,-111.65201099,0.00019897,2]
[359912969,1746415849579,-257.70395096,0.00019897,2]
[359912970,1746415849587,-454.19872922,0.00019897,2]
[359912971,1746415849598,-469.07540063,0.00019897,2]
[359912972,1746415849608,-519.09689887,0.00019897,2]
[359912973,1746415849617,-456.13301314,0.00019897,2]
[359912974,1746415849628,-456.83457538,0.00019897,2]
[359912975,1746415849642,-459.26964395,0.00019897,2]
[359912976,1746415849652,-476.84656378,0.00019897,2]
[359912977,1746415849662,-478.23771933,0.00019897,2]
[359912978,1746415849672,-478.61307033,0.00019897,2]
[359912979,1746415849684,-454.05766716,0.00019897,2]
[359912980,1746415849694,-450.98758761,0.00019897,2]
[359912981,1746415849705,-452.74375478,0.00019897,2]
[359912982,1746415849717,-469.5828094,0.00019897,2]
[359912983,1746415849727,-477.39069109,0.00019897,2]
[359912984,1746415849736,-191.78611,0.00019897,2]
[359912985,1746415849745,-450.0,0.00019897,2]
[359912986,1746415849755,-502.99934754,0.00019897,2]
[359912987,1746415849764,-191.78611,0.00019897,2]
[359912988,1746415849774,-464.04864988,0.00019897,2]
[359912989,1746415849783,-456.40934215,0.00019897,2]
[359912990,1746415849793,-458.37455662,0.00019897,2]
[359912991,1746415849804,-455.25055711,0.00019897,2]
[359912992,1746415849813,-450.0,0.00019897,2]
[359912993,1746415849823,-450.0,0.00019897,2]
[359912994,1746415849832,-456.06731402,0.00019897,2]
[359912995,1746415849841,-461.73757692,0.00019897,2]
[359912996,1746415849851,-454.72372974,0.00019897,2]
[359912997,1746415849860,-460.00772382,0.00019897,2]
[359912998,1746415849870,-453.34086978,0.00019897,2]
[359912999,1746415849879,-477.05590144,0.00019897,2]
[359913000,1746415849888,-453.45253457,0.00019897,2]
[359913001,1746415849898,-506.12371785,0.00019897,2]
[359913002,1746415849907,-453.44696973,0.00019897,2]
[359913003,1746415849917,-151.0,0.00019897,2]
[359913004,1746415849926,-151.0,0.00019897,2]
[359913005,1746415849935,-481.05779835,0.00019897,2]
[359913006,1746415849945,-151.0,0.00019897,2]
[359913007,1746415849954,-151.0,0.00019897,2]